fUSD/lending_fUSD_20240726
["ID","MTS","AMOUNT","RATE_DAILY","PERIOD"]
[333241750,1721969442911,-180884.60207624,0.00010998,2]
[333241768,1721969443076,-33547.15666307,0.00010998,2]
[333242052,1721969445943,-38490.82091938,0.00010998,2]
[333242055,1721969445956,-1704.47,0.00010998,2]
[333242057,1721969445967,-1704.47,0.00010999,2]
[333242059,1721969445977,-1704.47,0.00010999,2]
[333242061,1721969445987,-1704.47,0.00010999,2]
[333242063,1721969445997,-1704.47,0.00010999,2]
[333242065,1721969446006,-1704.47,0.00010999,2]
[333242067,1721969446015,-1704.47,0.00010999,2]
[333242069,1721969446025,-1704.47,0.00010999,2]
[333242071,1721969446034,-1704.47,0.00010999,2]
[333242072,1721969446044,-1704.47,0.00010999,2]
[333242074,1721969446054,-1704.47,0.00010999,2]
[333242076,1721969446064,-1704.47,0.00010999,2]
[333242078,1721969446073,-1704.47,0.00010999,2]
[333242080,1721969446083,-1704.47,0.00010999,2]
[333242081,1721969446093,-1704.47,0.00010999,2]
[333242083,1721969446102,-1704.47,0.00010999,2]
[333242085,1721969446112,-1704.47,0.00010999,2]
[333242086,1721969446122,-1704.47,0.00010999,2]
[333242088,1721969446132,-1704.47,0.00010999,2]
[333242090,1721969446142,-1704.51045411,0.00010999,2]
[333242092,1721969446151,-3183.36674494,0.00011,2]
[333242114,1721969446429,-1087.15276736,0.00011,2]
[333242116,1721969446442,-3109.41954188,0.00011,2]
[333242373,1721970493349,-468.0,0.0001787,120]
[333242374,1721970493372,-468.0,0.0001787,120]
[333242375,1721970493392,-157.03,0.0001788,120]
[333242376,1721970493414,-468.0,0.0001788,120]
[333242377,1721970493435,-468.0,0.0001788,120]
[333242378,1721970493460,-468.0,0.0001788,120]
[333242379,1721970493485,-473.36,0.0001788,120]
[333242380,1721970493507,-150.5,0.0001789,120]
[333242381,1721970493529,-468.0,0.0001789,120]
[333242382,1721970493551,-0.4836,0.0001789,120]
[333242431,1721970632117,-450.0,8.219e-05,2]
[333242433,1721970632129,-147.05,8.219e-05,2]
[333242435,1721970632138,-1000.0,9.264e-05,2]
[333242437,1721970632149,-250.0,9.306e-05,2]
[333242439,1721970632157,-1151.32,9.313e-05,2]
[333242440,1721970632165,-329.37,9.33e-05,2]
[333242441,1721970632174,-825.06,9.425e-05,2]
[333242442,1721970632183,-260.58,0.00010051,2]
[333242443,1721970632192,-260.58,0.00010053,2]
[333242444,1721970632202,-260.58,0.00010056,2]
[333242445,1721970632211,-260.58,0.00010059,2]
[333242446,1721970632219,-678.3,0.00010059,2]
[333242447,1721970632228,-260.58,0.00010061,2]
[333242448,1721970632236,-499.99,0.00010061,2]
[333242449,1721970632243,-260.58,0.00010064,2]
[333242450,1721970632251,-260.58,0.00010067,2]
[333242451,1721970632258,-260.58,0.00010069,2]
[333242452,1721970632266,-260.58,0.00010072,2]
[333242453,1721970632274,-260.58,0.00010075,2]
[333242454,1721970632282,-260.58,0.00010077,2]
[333242455,1721970632289,-260.58,0.0001008,2]
[333242456,1721970632297,-260.58,0.00010083,2]
[333242457,1721970632306,-260.58,0.00010085,2]
[333242458,1721970632314,-260.58,0.00010088,2]
[333242459,1721970632322,-260.58,0.00010091,2]
[333242460,1721970632329,-260.58,0.00010093,2]
[333242461,1721970632336,-260.58,0.00010096,2]
[333242462,1721970632344,-171.9973487,0.00010099,2]
[333242463,1721970632355,-88.5826513,0.00010099,2]
[333242464,1721970632361,-260.58,0.00010101,2]
[333242465,1721970632369,-421.37425562,0.00010101,2]
[333242466,1721970632378,-3354.9,0.00010101,2]
[333242467,1721970632395,-1017.04312744,0.00010101,2]
[333242468,1721970632404,-422.57359696,0.00010101,2]
[333242469,1721970632414,-2306.76520608,0.00010101,2]
[333242470,1721970632423,-475.78770869,0.00010101,2]
[333242471,1721970632432,-6650.89210521,0.00010101,2]
[333242472,1721970632442,-420.27,0.00010141,2]
[333242473,1721970632450,-420.27,0.00010141,2]
[333242474,1721970632459,-420.27,0.00010141,2]
[333242475,1721970632467,-420.27,0.00010141,2]
[333242476,1721970632476,-845.08,0.00010241,2]
[333242477,1721970632486,-422.91,0.00010241,2]
[333242478,1721970632495,-420.27,0.00010241,2]
[333242479,1721970632505,-46.67469479,0.00010241,2]
[333242480,1721970632521,-787.18530521,0.00010241,2]
[333242482,1721970632531,-420.27,0.00010241,2]
[333242484,1721970632541,-833.86,0.00010241,2]
[333242485,1721970632551,-714.5660432,0.00010241,2]
[333242486,1721970632565,-119.2939568,0.00010241,2]
[333242487,1721970632575,-420.27,0.00010241,2]
[333242488,1721970632585,-420.27,0.00010241,2]
[333242489,1721970632596,-700.46422781,0.00010241,2]
[333242490,1721970632608,-133.39577219,0.00010241,2]
[333242491,1721970632619,-833.86,0.00010241,2]
[333242492,1721970632628,-833.86,0.00010241,2]
[333242493,1721970632638,-833.86,0.00010241,2]
[333242494,1721970632651,-833.86,0.00010241,2]
[333242495,1721970632661,-1000.0,0.00010422,2]
[333242496,1721970632671,-597.05,0.00010441,2]
[333242497,1721970632681,-10000.0,0.00010449,2]
[333242498,1721970632691,-4420.50641199,0.00010788,2]
[333242499,1721970632700,-153.05898662,0.00010798,2]
[333242500,1721970632709,-3209.7081172,0.000108,2]
[333242501,1721970632719,-1177.0,0.000108,3]
[333242502,1721970632728,-153.05898662,0.00010832,2]
[333242503,1721970632737,-153.05898662,0.00010866,2]
[333242504,1721970632747,-315719.99014244,0.00010897,2]
[333242505,1721970632757,-601.3217,0.00010898,2]
[333242506,1721970632767,-29717.9276,0.00010898,2]
[333242507,1721970632776,-11494.3431,0.00010898,2]
[333242508,1721970632785,-1000.0,0.00010898,2]
[333242509,1721970632794,-1433.7035,0.000109,2]
[333242510,1721970632804,-718.610488,0.000109,2]
[333242511,1721970632816,-1273.5628,0.000109,2]
[333242512,1721970632825,-10000.0,0.000109,2]
[333242513,1721970632835,-8229.3478,0.000109,2]
[333242514,1721970632845,-177.35582664,0.000109,2]
[333242515,1721970632854,-153.05898662,0.000109,2]
[333242516,1721970632864,-2868.02231288,0.000109,2]
[333242517,1721970632874,-500.0,0.00010911,2]
[333242518,1721970632883,-500.0,0.00010912,2]
[333242519,1721970632892,-500.0,0.00010958,2]
[333242520,1721970632902,-500.0,0.00010958,2]
[333242521,1721970632911,-500.0,0.00010958,2]
[333242522,1721970632921,-500.0,0.00010958,2]
[333242523,1721970632930,-175.06865459,0.00010958,2]
[333242524,1721970632940,-500.0,0.00010958,2]
[333242525,1721970632949,-500.0,0.00010958,2]
[333242526,1721970632959,-500.0,0.00010958,2]
[333242527,1721970632968,-324.06850603,0.00010958,2]
[333242528,1721970632977,-500.0,0.00010958,2]
[333242529,1721970632987,-200.0,0.00010959,2]
[333242530,1721970632996,-500.0,0.00010989,2]
[333242531,1721970633006,-361.2910946,0.00010997,2]
[333242532,1721970633015,-753.938744,0.00010997,2]
[333242533,1721970633025,-210.18035992,0.00010999,2]
[333242534,1721970633036,-5665.0062404,0.00010999,2]
[333242535,1721970633046,-116287.36302284,0.00011,2]
[333242536,1721970633057,-2600.0,0.00011,2]
[333242537,1721970633068,-141064.77059619,0.00011,2]
[333242538,1721970633081,-88693.10321877,0.00011,2]
[333242539,1721970633101,-1001.55012815,0.00011,2]
[333242540,1721970633114,-1007.07587274,0.00011,2]
[333242541,1721970633125,-2977.63233919,0.00011,2]
[333242542,1721970633143,-791.24822385,0.00011,2]
[333242547,1721970637956,-1949.91783652,0.00011,2]
[333242548,1721970638015,-1999.05404821,0.00011,2]
[333242549,1721970638029,-775.44461026,0.00011,2]
[333242550,1721970638042,-300.32,0.00011,2]
[333242551,1721970638055,-1287.05327744,0.00011,2]
[333242552,1721970638070,-424.88308538,0.00011,2]
[333242553,1721970638085,-1151.7587563,0.00011,2]
[333242554,1721970638099,-586.27968751,0.00011,2]
[333242555,1721970638115,-320.03674283,0.00011,2]
[333242556,1721970638126,-1803.52865084,0.00011,2]
[333242557,1721970638138,-810.16228092,0.00011,2]
[333242558,1721970638151,-1140.91527109,0.00011,2]
[333242559,1721970638162,-46086.00578221,0.00011,2]
[333242560,1721970638174,-1002.20146567,0.00011,2]
[333242561,1721970638186,-3163.29177813,0.00011,2]
[333242562,1721970638198,-3450.49798637,0.00011,2]
[333242563,1721970638209,-15859.54,0.00011,2]
[333242564,1721970638230,-61602.32652131,0.00011,2]
[333242565,1721970638241,-1856.5631075,0.00011,2]
[333242566,1721970638253,-874.9,0.00011,2]
[333242567,1721970638264,-11377.15493044,0.00011,2]
[333242568,1721970638287,-673.40945464,0.00011,2]
[333242569,1721970638298,-938.65652792,0.00011,2]
[333242570,1721970638310,-2212.331545,0.00011,2]
[333242571,1721970638323,-479.23585153,0.00011,2]
[333242572,1721970638334,-500.0,0.00011,2]
[333242573,1721970638346,-594.11266483,0.00011,2]
[333242574,1721970638358,-1153.0,0.00011,2]
[333242575,1721970638369,-4800.900707,0.00011,2]
[333242576,1721970638386,-6874.19597628,0.00011,2]
[333242578,1721970638398,-7247.88125866,0.00011,2]
[333242580,1721970638409,-7173.35954135,0.00011,2]
[333242582,1721970638421,-9901.01985224,0.00011,2]
[333242584,1721970638433,-5085.22599903,0.00011,2]
[333242586,1721970638444,-5726.34454775,0.00011,2]
[333242588,1721970638456,-1391.18950319,0.00011,2]
[333242589,1721970638467,-6810.39788908,0.00011,2]
[333242590,1721970638480,-2881.26,0.00011,2]
[333242591,1721970638491,-519.980028,0.00011,2]
[333242592,1721970638503,-729.17517403,0.00011,2]
[333242593,1721970638514,-475.82133345,0.00011,2]
[333242594,1721970638526,-48712.65287047,0.00011,2]
[333242595,1721970638537,-1816.97355013,0.00011,2]
[333242596,1721970638548,-1656.96940033,0.00011,2]
[333242597,1721970638560,-1888.89310926,0.00011,2]
[333242598,1721970638574,-2253.52196766,0.00011,2]
[333242603,1721970640067,-8524457.0279279,0.00011,2]
[333242604,1721970640078,-1211746.39055365,0.00011,2]
[333242605,1721970640088,-4371280.5390111,0.00011,2]
[333242606,1721970640098,-3012.0,0.00011,2]
[333242607,1721970640112,-460952.21509004,0.00011,2]
[333242608,1721970640122,-18598.0115135,0.00011,2]
[333242609,1721970640132,-1595318.40557275,0.00011,2]
[333242610,1721970640143,-2210765.92054414,0.00011,2]
[333242611,1721970640153,-245439.13132239,0.00011,2]
[333242612,1721970640163,-508416.50538662,0.00011,2]
[333242613,1721970640173,-1697358.73900651,0.00011,2]
[333242614,1721970640187,-7104.61058235,0.00011,2]
[333242615,1721970640198,-18405.990843,0.00011,2]
[333242616,1721970640210,-7480.8599,0.00011,2]
[333242617,1721970640222,-8194.3,0.00011,2]
[333242618,1721970640249,-2177.13338809,0.00011,2]
[333242619,1721970640261,-354.16960267,0.00011,2]
[333242620,1721970640273,-250.13277065,0.00011,2]
[333242621,1721970640290,-338.805,0.00011,2]
[333242622,1721970640301,-7895.59244684,0.00011,2]
[333242623,1721970640317,-586.33548422,0.00011,2]
[333242856,1721970643035,-942.66174752,0.00011,2]
[333242858,1721970643047,-938.72103182,0.00011,2]
[333242872,1721970643154,-1554.46392091,0.00011,2]
[333242875,1721970643165,-5287.51751739,0.00011,2]
[333242877,1721970643178,-880.8,0.00011,2]
[333242881,1721970643211,-719.60351394,0.00011,2]
[333242883,1721970643222,-11209.15747998,0.00011,2]
[333242885,1721970643269,-49171.35892517,0.00011,2]
[333242886,1721970643328,-762.350893,0.00011,2]
[333242891,1721970646048,-833.86,0.00010141,2]
[333242892,1721970646058,-206.59485229,0.00011,2]
[333242893,1721970646492,-1891.19863597,0.00011,2]
[333242894,1721970646505,-8592.51632956,0.00011,2]
[333242897,1721970646518,-267.22567297,0.00011,2]
[333242899,1721970646531,-8284.05392027,0.00011,2]
[333242900,1721970646544,-9199.06253858,0.00011,2]
[333242901,1721970646558,-20045.58031045,0.00011,2]
[333242902,1721970646577,-606.13570382,0.00011,2]
[333242903,1721970646590,-2200.85077684,0.00011,2]
[333242907,1721970726964,-150.5,0.0001787,120]
[333242908,1721970726986,-150.5,0.0001787,120]
[333242909,1721970727008,-150.5,0.0001788,120]
[333242910,1721970727029,-150.5,0.0001788,120]
[333242911,1721970727049,-150.5,0.0001788,120]
[333242912,1721970727070,-150.5,0.0001789,120]
[333242913,1721970727090,-150.5,0.0001789,120]
[333242914,1721970727111,-150.5,0.0001789,120]
[333242915,1721970727135,-199.51,0.0001789,120]
[333242916,1721970727156,-153.29,0.0001789,120]
[333242917,1721970759181,1000.0,7.007e-05,2]
[333242920,1721970818710,2000.0,0.00018,90]
[333242921,1721970829851,127176.63006269,7.007e-05,2]
[333242922,1721970843488,2730.02395445,7.007e-05,2]
[333242923,1721970861490,2730.02395445,7.007e-05,2]
[333242924,1721970871962,1024.8,0.00018,90]
[333242927,1721971331030,-151.0,0.00020469,120]
[333242928,1721971331058,-579.35182548,0.00021,120]
[333242930,1721971511853,-399.12,8.244e-05,2]
[333242931,1721971578870,-208.7,8.244e-05,2]
[333242932,1721971578893,-1516.6799747,8.244e-05,2]
[333242933,1721971578917,-300.0,8.492e-05,2]
[333242934,1721971578939,-300.0,8.492e-05,2]
[333242935,1721971579908,3332.17593351,8.493e-05,2]
[333242946,1721971832786,-609.49,8.219e-05,2]
[333242947,1721971832795,-790.19026682,8.493e-05,2]
[333242948,1721971832804,-250.0,9.827e-05,2]
[333242949,1721971832816,-503.94,0.0001,2]
[333242950,1721971832825,-500.0,0.0001,2]
[333242951,1721971832836,-347.32,0.0001,2]
[333242952,1721971832845,-4842.99637973,0.0001,2]
[333242953,1721971832854,-500.0,0.0001,2]
[333242954,1721971832863,-500.0,0.0001,2]
[333242955,1721971832873,-500.0,0.0001,2]
[333242956,1721971832883,-500.0,0.0001,2]
[333242957,1721971832892,-500.0,0.0001,2]
[333242958,1721971832902,-524.34,0.0001,2]
[333242959,1721971832911,-8013.70491736,0.0001,2]
[333242960,1721971832920,-244.11,0.00010042,2]
[333242961,1721971832930,-1000.0,0.00010042,2]
[333242962,1721971832939,-150.0,0.00010293,2]
[333242963,1721971832948,-177.82274103,0.00010294,2]
[333242964,1721971832957,-4479.97433037,0.00010294,2]
[333242965,1721971832966,-947.52951739,0.00010294,2]
[333242966,1721971832976,-479.82718571,0.00010294,2]
[333242967,1721971832986,-161.49215332,0.00010294,10]
[333242968,1721971832995,-155.0,0.00010294,2]
[333242969,1721971833004,-45640.44239717,0.00010294,2]
[333242970,1721971833013,-833.86,0.000103,2]
[333242971,1721971833022,-833.86,0.000103,2]
[333242972,1721971833031,-832.66,0.000103,2]
[333242973,1721971833040,-1692.34,0.00010346,2]
[333242974,1721971833049,-6526.85,0.00010346,2]
[333242975,1721971833058,-395.1,0.00010378,2]
[333242976,1721971833067,-355.9,0.00010378,2]
[333242977,1721971833078,-150.0,0.00010378,2]
[333242978,1721971833089,-530.05,0.00010378,2]
[333242979,1721971833098,-425.61,0.00010378,2]
[333242980,1721971833107,-530.05,0.00010378,2]
[333242981,1721971833117,-355.9,0.00010378,2]
[333242982,1721971833127,-165.35,0.00010378,2]
[333242983,1721971833136,-150.0,0.00010378,2]
[333242984,1721971833145,-165.35,0.00010378,2]
[333242985,1721971833155,-355.9,0.00010378,2]
[333242986,1721971833164,-425.61,0.00010378,2]
[333242987,1721971833173,-150.0,0.00010378,2]
[333242988,1721971833183,-425.61,0.00010378,2]
[333242989,1721971833193,-150.0,0.00010378,2]
[333242990,1721971833202,-355.9,0.00010378,2]
[333242991,1721971833211,-165.35,0.00010378,2]
[333242992,1721971833221,-530.05,0.000104,2]
[333242993,1721971833230,-150.48,0.000104,2]
[333242994,1721971833240,-150.0,0.000104,2]
[333242995,1721971833249,-833.86,0.000104,2]
[333242996,1721971833259,-530.05,0.000104,2]
[333242997,1721971833269,-425.61,0.000104,2]
[333242998,1721971833278,-833.86,0.000104,2]
[333242999,1721971833288,-165.35,0.000104,2]
[333243000,1721971833297,-355.9,0.000104,2]
[333243001,1721971833307,-171.46,0.000104,2]
[333243002,1721971833317,-150.0,0.000104,2]
[333243003,1721971833326,-530.05,0.000104,2]
[333243004,1721971833337,-150.0,0.000104,2]
[333243005,1721971833346,-425.61,0.000104,2]
[333243006,1721971833355,-833.86,0.000104,2]
[333243007,1721971833368,-165.35,0.000104,2]
[333243008,1721971833377,-355.9,0.000104,2]
[333243009,1721971833387,-425.61,0.000104,2]
[333243010,1721971833395,-355.9,0.000104,2]
[333243011,1721971833405,-384.74,0.000104,2]
[333243012,1721971833415,-165.35,0.000104,2]
[333243013,1721971833424,-833.86,0.000104,2]
[333243014,1721971833433,-150.0,0.000104,2]
[333243015,1721971833443,-609.49,0.00010473,2]
[333243016,1721971833452,-111397.74910155,0.00010497,2]
[333243017,1721971833465,-4644.56,0.00010508,2]
[333243018,1721971833475,-151.67,0.000106,2]
[333243019,1721971833484,-833.86,0.000106,2]
[333243020,1721971833493,-302.41,0.000106,2]
[333243021,1721971833503,-422.66,0.000106,2]
[333243022,1721971833513,-15047.27925137,0.00010781,2]
[333243023,1721971833529,-2653.79871982,0.00010781,2]
[333243024,1721971833541,-6446.24438432,0.00010781,2]
[333243028,1721971838339,-500.27909508,0.00010781,2]
[333243029,1721971838549,-642.047345,0.00010781,2]
[333243030,1721971838560,-500.0,0.00010781,2]
[333243031,1721971838571,-6475.254,0.00010781,2]
[333243032,1721971838594,-0.03475779,0.00010781,2]
[333243036,1721971840454,-890.90712876,0.00010781,2]
[333243037,1721971840535,-16712.15531786,0.00010781,2]
[333243038,1721971840547,-20283.4571,0.00010797,2]
[333243039,1721971840557,-9854.33076522,0.00010797,2]
[333243040,1721971840616,-8480.31693478,0.00010797,2]
[333243041,1721971840625,-10292.12378405,0.00010899,2]
[333243042,1721971840635,-513.9902,0.000109,2]
[333243043,1721971840644,-174.17818266,0.000109,2]
[333243044,1721971840653,-1786.14673714,0.000109,2]
[333243045,1721971840664,-383.0020099,0.000109,2]
[333243046,1721971840826,-1436.71569636,0.000109,2]
[333243047,1721971841357,-348.14244648,0.000109,2]
[333243048,1721971841369,-2609.442241,0.000109,2]
[333243049,1721971841434,-487.38752446,0.000109,2]
[333243067,1721971843306,-425.61,0.00010378,2]
[333243068,1721971843316,-2949.16334466,0.000109,2]
[333243069,1721971843326,-998.98344209,0.000109,2]
[333243070,1721971843336,-500.0,0.00010911,2]
[333243071,1721971843346,-500.0,0.00010912,2]
[333243072,1721971843356,-200.0,0.00010959,2]
[333243073,1721971843365,-809.28660577,0.00010999,2]
[333243074,1721971843374,-5136.359,0.00010999,2]
[333243075,1721971843384,-5829.0,0.00010999,2]
[333243076,1721971843394,-1216.116,0.00010999,2]
[333243077,1721971843403,-1669.0,0.00010999,2]
[333243078,1721971843413,-248.08160748,0.00010999,2]
[333243079,1721971843424,-3420.47496313,0.00010999,2]
[333243080,1721971843436,-2675.90819467,0.00010999,2]
[333243081,1721971843607,-165.35,0.00010378,2]
[333243082,1721971843617,-13188.48733217,0.00010999,2]
[333243091,1721971848629,-500.0,0.0001,2]
[333243092,1721971848639,-1076.754,0.00010978,2]
[333243093,1721971848649,-1674.94528,0.00010999,2]
[333243094,1721971848714,-8750.01423237,0.00010999,2]
[333243097,1721971849836,-0.23666643,0.00010999,2]
[333243098,1721972735369,-560.05,8.378e-05,2]
[333243099,1721972735389,-150.0,9.973e-05,2]
[333243100,1721972735412,-300.0,9.999e-05,2]
[333243101,1721972735435,-300.0,9.999e-05,2]
[333243102,1721972735457,-500.0,0.0001,2]
[333243103,1721972735477,-500.0,0.0001,2]
[333243104,1721972735497,-500.0,0.0001,2]
[333243105,1721972735517,-500.0,0.0001,2]
[333243106,1721972735537,-330.08,0.0001,2]
[333243107,1721972735557,-250.0,0.00010242,2]
[333243108,1721972735578,-800.0,0.00010257,2]
[333243109,1721972735598,-200.0,0.00010536,2]
[333243110,1721972735619,-560.05,0.00010642,2]
[333243111,1721972735639,-185.8641631,0.000109,2]
[333243112,1721972735659,-501.61684892,0.00010958,2]
[333243113,1721972735680,-500.0,0.00010958,2]
[333243114,1721972735700,-637.74999999,0.00010958,2]
[333243115,1721972735719,-200.0,0.00010959,2]
[333243116,1721972735742,-151.072614,0.00010997,2]
[333243117,1721972735771,-152.072614,0.00010997,2]
[333243118,1721972735791,-412.59782516,0.00010999,2]
[333243119,1721972735814,-790.19026682,0.00010999,2]
[333243120,1721972735835,-181.55611135,0.00010999,2]
[333243121,1721972735854,-167.70845162,0.00010999,2]
[333243122,1721972735875,-3000.0,0.00010999,2]
[333243123,1721972735899,-420.0,0.00010999,2]
[333243124,1721972735919,-420.0,0.00010999,2]
[333243125,1721972735938,-8403.852,0.00010999,2]
[333243126,1721972735957,-810.0,0.00010999,2]
[333243127,1721972735977,-623.066,0.00010999,2]
[333243128,1721972735996,-150.712,0.00010999,2]
[333243129,1721972736016,-451.283,0.00010999,2]
[333243130,1721972755059,-115627.74154261,0.00011,2]
[333243131,1721972760554,184.0,0.00010999,2]
[333243132,1721972762092,300.0,0.00010999,2]
[333243133,1721972779071,-10928278.73656243,0.00011,2]
[333243138,1721973024887,171.90652186,5e-05,2]
[333243167,1721973031495,-478.59396333,8.219e-05,2]
[333243171,1721973031507,-44.75603667,8.219e-05,2]
[333243174,1721973031517,-360.0,9.562e-05,2]
[333243177,1721973031526,-1431.63685852,9.656e-05,2]
[333243180,1721973031538,-1079.82897878,9.656e-05,2]
[333243182,1721973031549,-4869.87206032,9.656e-05,2]
[333243183,1721973031614,-1524.10623217,9.656e-05,2]
[333243184,1721973031697,-280.83854349,9.656e-05,2]
[333243185,1721973031815,-14579.03732672,9.656e-05,2]
[333243186,1721973031824,-2000.0,0.0001,2]
[333243187,1721973031834,-2000.0,0.000102,2]
[333243188,1721973031845,-401.92,0.00010392,2]
[333243189,1721973031854,-401.92,0.00010395,2]
[333243190,1721973031863,-401.92,0.00010398,2]
[333243191,1721973031872,-2000.0,0.000104,2]
[333243192,1721973031882,-401.92,0.00010401,2]
[333243193,1721973031891,-401.92,0.00010403,2]
[333243194,1721973031900,-401.92,0.00010406,2]
[333243197,1721973031910,-401.92,0.00010409,2]
[333243198,1721973031919,-401.92,0.00010411,2]
[333243199,1721973031928,-401.92,0.00010414,2]
[333243200,1721973031938,-401.92,0.00010417,2]
[333243201,1721973031947,-401.92,0.0001042,2]
[333243202,1721973031957,-401.92,0.00010422,2]
[333243203,1721973031967,-401.92,0.00010425,2]
[333243204,1721973031976,-401.92,0.00010428,2]
[333243205,1721973031985,-401.92,0.00010431,2]
[333243206,1721973031995,-401.92,0.00010433,2]
[333243207,1721973032004,-401.92,0.00010436,2]
[333243208,1721973032013,-401.92,0.00010439,2]
[333243209,1721973032022,-401.92,0.00010442,2]
[333243210,1721973032031,-401.92,0.00010444,2]
[333243211,1721973032040,-523.35,0.00010461,2]
[333243212,1721973032050,-360.0,0.00010758,2]
[333243213,1721973032059,-511.3400112,0.0001089,2]
[333243214,1721973032069,-150.0,0.00010899,2]
[333243215,1721973032078,-212.933,0.000109,2]
[333243216,1721973032087,-8802.18165936,0.000109,2]
[333243217,1721973032097,-355.44956505,0.000109,2]
[333243218,1721973032106,-4086.25253502,0.000109,2]
[333243219,1721973032115,-324924.91797408,0.000109,2]
[333243220,1721973032127,-6959.69455103,0.000109,2]
[333243221,1721973032138,-500.0,0.000109,2]
[333243222,1721973032149,-479.84771151,0.000109,2]
[333243223,1721973032163,-1096.73776496,0.000109,2]
[333243224,1721973032174,-1238.04,0.000109,2]
[333243225,1721973032185,-8678.22559473,0.000109,2]
[333243226,1721973032196,-746.56164777,0.000109,2]
[333243227,1721973032208,-984.09450233,0.000109,2]
[333243228,1721973032223,-554.05964475,0.000109,2]
[333243229,1721973032240,-5801.46363943,0.000109,2]
[333243230,1721973032251,-3410.50407077,0.000109,2]
[333243231,1721973032262,-5030.175,0.000109,2]
[333243232,1721973032273,-140685.68137304,0.000109,2]
[333243233,1721973032284,-535.511,0.000109,2]
[333243237,1721973037641,-98691.73653135,0.000109,2]
[333243241,1721973039647,-335.505,0.000109,2]
[333243242,1721973039861,-46652.24691874,0.000109,2]
[333243243,1721973039872,-653.03782999,0.000109,2]
[333243244,1721973039887,-1358.27907488,0.000109,2]
[333243245,1721973039898,-333.81,0.000109,2]
[333243252,1721973042445,-9527.52503687,0.000109,2]
[333243269,1721973042546,-858.96997154,0.000109,2]
[333243272,1721973042558,-143387.79857345,0.000109,2]
[333243277,1721973042574,-305.00692144,0.000109,2]
[333243288,1721973042668,-1332.77391201,0.000109,2]
[333243340,1721973046477,-451.16284433,0.000109,2]
[333243342,1721973046488,-251.0342802,0.000109,2]
[333243343,1721973046861,-5729.58584795,0.000109,2]
[333243344,1721973046873,-1232.34172291,0.000109,2]
[333243347,1721973897779,9216.37223644,0.0002,120]
[333243355,1721974232851,-361.36554768,8.219e-05,2]
[333243356,1721974232863,-164.65445232,8.219e-05,2]
[333243357,1721974232872,-300.0,9.709e-05,2]
[333243358,1721974232881,-300.0,9.709e-05,2]
[333243359,1721974232893,-947.50118713,9.709e-05,2]
[333243360,1721974232903,-814.81,9.71e-05,2]
[333243361,1721974232912,-567.23436055,9.71e-05,2]
[333243362,1721974232923,-939.2,9.71e-05,2]
[333243363,1721974232935,-11038.91143297,9.71e-05,2]
[333243364,1721974232946,-11354.65420648,9.71e-05,2]
[333243365,1721974232955,-250.0,9.795e-05,2]
[333243366,1721974232966,-1000.0,9.796e-05,2]
[333243367,1721974232975,-336.02,9.878e-05,2]
[333243368,1721974232985,-788.83,9.911e-05,2]
[333243369,1721974232994,-276.95,9.99e-05,2]
[333243370,1721974233004,-276.95,9.99e-05,2]
[333243371,1721974233013,-276.95,9.99e-05,2]
[333243372,1721974233022,-3000.0,0.0001,2]
[333243373,1721974233032,-128.35903071,0.0001,2]
[333243374,1721974233044,-371.64096929,0.0001,2]
[333243375,1721974233054,-500.0,0.0001,2]